[Event "Titled Tuesday Blitz February 14 Early 2023"]
[White "Orujov, Elshad"]
[Black "Papp, Petra"]
[WhiteFideId "13403540"]
[BlackFideId "739049"]
[WhiteElo "2304"]
[BlackElo "2343"]
[Result "1/2-1/2"]
[Round "07"]
[TimeControl "180+2"]
[Date "2023.02.15"]
[WhiteClock "0:00:47"]
[BlackClock "0:02:21"]

1. e4 {[%clk 0:02:59]}  c5 {[%clk 0:02:58]} 2. Nf3 {[%clk 0:02:59]}  Nc6 {[%clk 0:02:59]} 3. d4 {[%clk 0:03:00]}  cxd4 {[%clk 0:02:59]} 4. Nxd4 {[%clk 0:03:00]}  Nf6 {[%clk 0:02:59]} 5. Nc3 {[%clk 0:03:00]}  e5 {[%clk 0:03:00]} 6. Ndb5 {[%clk 0:03:00]}  d6 {[%clk 0:03:00]} 7. Bg5 {[%clk 0:03:00]}  a6 {[%clk 0:03:01]} 8. Na3 {[%clk 0:03:00]}  b5 {[%clk 0:03:01]} 9. Nd5 {[%clk 0:03:00]}  Be7 {[%clk 0:03:01]} 10. Bxf6 {[%clk 0:03:00]}  Bxf6 {[%clk 0:03:02]} 11. c4 {[%clk 0:03:00]}  b4 {[%clk 0:03:01]} 12. Nc2 {[%clk 0:03:00]}  a5 {[%clk 0:03:02]} 13. Qf3 {[%clk 0:02:58]}  Be7 {[%clk 0:02:59]} 14. Rd1 {[%clk 0:02:53]}  O-O {[%clk 0:02:59]} 15. c5 {[%clk 0:02:51]}  dxc5 {[%clk 0:02:54]} 16. Nf6+ {[%clk 0:02:51]}  Bxf6 {[%clk 0:02:54]} 17. Rxd8 {[%clk 0:02:51]}  Rxd8 {[%clk 0:02:54]} 18. Bc4 {[%clk 0:02:52]}  a4 {[%clk 0:02:50]} 19. O-O {[%clk 0:02:50]}  Ba6 {[%clk 0:02:48]} 20. Bxa6 {[%clk 0:02:49]}  Rxa6 {[%clk 0:02:48]} 21. Rd1 {[%clk 0:02:49]}  Raa8 {[%clk 0:02:48]} 22. Ne3 {[%clk 0:02:43]}  Nd4 {[%clk 0:02:46]} 23. Qg4 {[%clk 0:02:40]}  b3 {[%clk 0:02:39]} 24. a3 {[%clk 0:02:32]}  Nc2 {[%clk 0:02:37]} 25. Nd5 {[%clk 0:02:25]}  Kf8 {[%clk 0:02:35]} 26. Nxf6 {[%clk 0:02:22]}  gxf6 {[%clk 0:02:34]} 27. h4 {[%clk 0:02:12]}  c4 {[%clk 0:02:28]} 28. Qe2 {[%clk 0:01:30]}  Rxd1+ {[%clk 0:02:26]} 29. Qxd1 {[%clk 0:01:31]}  c3 {[%clk 0:02:27]} 30. bxc3 {[%clk 0:01:21]}  Ke7 {[%clk 0:02:27]} 31. Qd5 {[%clk 0:01:10]}  Rb8 {[%clk 0:02:24]} 32. Qc5+ {[%clk 0:01:04]}  Kd7 {[%clk 0:02:22]} 33. Qd5+ {[%clk 0:01:03]}  Ke7 {[%clk 0:02:18]} 34. Qc5+ {[%clk 0:01:03]}  Ke8 {[%clk 0:02:19]} 35. Qc6+ {[%clk 0:01:00]}  Kd8 {[%clk 0:02:19]} 36. Qd6+ {[%clk 0:01:00]}  Kc8 {[%clk 0:02:20]} 37. Qc6+ {[%clk 0:00:59]}  Kd8 {[%clk 0:02:20]} 38. Qd6+ {[%clk 0:00:47]}  Kc8 {[%clk 0:02:20]} 39. Qc6+ {[%clk 0:00:47]}  Kd8 {[%clk 0:02:21]} 1/2-1/2


[Site "https://www.chess.com"]

[Event "Titled Tuesday Blitz February 14 Early 2023"]
[White "EdmundPlayer"]
[Black "Mesa Cruz, Juan Carlos"]
[BlackFideId "6423400"]
[WhiteElo "2246"]
[BlackElo "2122"]
[Result "1-0"]
[Round "07"]
[TimeControl "180+2"]
[Date "2023.02.15"]
[WhiteClock "0:00:55"]
[BlackClock "0:00:33"]

1. e4 {[%clk 0:02:56]}  c5 {[%clk 0:02:59]} 2. Nf3 {[%clk 0:02:56]}  d6 {[%clk 0:02:57]} 3. d4 {[%clk 0:02:55]}  cxd4 {[%clk 0:02:58]} 4. Nxd4 {[%clk 0:02:55]}  Nf6 {[%clk 0:02:59]} 5. Nc3 {[%clk 0:02:55]}  a6 {[%clk 0:03:00]} 6. h3 {[%clk 0:02:56]}  e5 {[%clk 0:03:00]} 7. Nde2 {[%clk 0:02:56]}  Be7 {[%clk 0:02:57]} 8. g4 {[%clk 0:02:56]}  h6 {[%clk 0:02:56]} 9. Bg2 {[%clk 0:02:56]}  O-O {[%clk 0:02:55]} 10. Be3 {[%clk 0:02:55]}  Be6 {[%clk 0:02:55]} 11. a4 {[%clk 0:02:53]}  Nbd7 {[%clk 0:02:56]} 12. Qd2 {[%clk 0:02:51]}  Nb6 {[%clk 0:02:55]} 13. b3 {[%clk 0:02:50]}  Qc7 {[%clk 0:02:52]} 14. O-O {[%clk 0:02:38]}  Rfd8 {[%clk 0:02:48]} 15. a5 {[%clk 0:02:37]}  Nbd7 {[%clk 0:02:48]} 16. Nd5 {[%clk 0:02:30]}  Bxd5 {[%clk 0:02:46]} 17. exd5 {[%clk 0:02:30]}  Re8 {[%clk 0:02:38]} 18. Ng3 {[%clk 0:02:27]}  Nf8 {[%clk 0:02:32]} 19. Nf5 {[%clk 0:02:25]}  Ng6 {[%clk 0:02:31]} 20. c4 {[%clk 0:02:16]}  Bf8 {[%clk 0:02:29]} 21. b4 {[%clk 0:02:09]}  Qxc4 {[%clk 0:02:18]} 22. Rfc1 {[%clk 0:02:05]}  Qb5 {[%clk 0:02:18]} 23. Rc7 {[%clk 0:01:57]}  Rac8 {[%clk 0:02:10]} 24. Rac1 {[%clk 0:01:57]}  Rxc7 {[%clk 0:02:07]} 25. Rxc7 {[%clk 0:01:57]}  Nf4 {[%clk 0:02:05]} 26. Bxf4 {[%clk 0:01:53]}  exf4 {[%clk 0:02:05]} 27. Qxf4 {[%clk 0:01:53]}  Nxd5 {[%clk 0:02:02]} 28. Nxh6+ {[%clk 0:01:53]}  Kh7 {[%clk 0:01:53]} 29. Qf5+ {[%clk 0:01:38]}  g6 {[%clk 0:01:10]} 30. Qxf7+ {[%clk 0:01:12]}  Kxh6 {[%clk 0:01:09]} 31. Bxd5 {[%clk 0:00:59]}  Re7 {[%clk 0:00:34]} 32. Qxf8+ {[%clk 0:00:57]}  Kg5 {[%clk 0:00:33]} 33. Qxe7+ {[%clk 0:00:57]}  Kf4 {[%clk 0:00:33]} 34. Qe3# {[%clk 0:00:55]} 1-0


[Site "https://www.chess.com"]

[Event "Titled Tuesday Blitz February 14 Early 2023"]
[White "lisjakzlatko1"]
[Black "Boder, Jan"]
[BlackFideId "16243226"]
[WhiteElo "2220"]
[BlackElo "2294"]
[Result "1-0"]
[Round "07"]
[TimeControl "180+2"]
[Date "2023.02.15"]
[WhiteClock "0:00:34"]
[BlackClock "0:00:01"]

1. e4 {[%clk 0:03:00]}  e5 {[%clk 0:02:56]} 2. Nf3 {[%clk 0:02:59]}  Nc6 {[%clk 0:02:56]} 3. Bb5 {[%clk 0:02:58]}  a6 {[%clk 0:02:56]} 4. Bxc6 {[%clk 0:02:59]}  dxc6 {[%clk 0:02:56]} 5. O-O {[%clk 0:02:59]}  f6 {[%clk 0:02:44]} 6. d4 {[%clk 0:02:55]}  exd4 {[%clk 0:02:44]} 7. Nxd4 {[%clk 0:02:54]}  c5 {[%clk 0:02:39]} 8. Nb3 {[%clk 0:02:51]}  Qxd1 {[%clk 0:02:36]} 9. Rxd1 {[%clk 0:02:49]}  Bd6 {[%clk 0:02:25]} 10. Be3 {[%clk 0:02:42]}  b6 {[%clk 0:02:24]} 11. a4 {[%clk 0:02:41]}  Bb7 {[%clk 0:02:09]} 12. N1d2 {[%clk 0:02:35]}  Ne7 {[%clk 0:02:05]} 13. f3 {[%clk 0:02:32]}  O-O-O {[%clk 0:02:05]} 14. Nc4 {[%clk 0:02:31]}  Nc6 {[%clk 0:02:00]} 15. a5 {[%clk 0:02:27]}  b5 {[%clk 0:01:55]} 16. Na3 {[%clk 0:01:52]}  c4 {[%clk 0:01:32]} 17. Nc5 {[%clk 0:01:52]}  Bxc5 {[%clk 0:01:26]} 18. Bxc5 {[%clk 0:01:50]}  Rxd1+ {[%clk 0:01:27]} 19. Rxd1 {[%clk 0:01:49]}  Rd8 {[%clk 0:01:28]} 20. Ra1 {[%clk 0:01:24]}  Nxa5 {[%clk 0:00:41]} 21. Nxb5 {[%clk 0:01:21]}  axb5 {[%clk 0:00:42]} 22. Rxa5 {[%clk 0:01:20]}  Rd1+ {[%clk 0:00:42]} 23. Kf2 {[%clk 0:01:19]}  Rd2+ {[%clk 0:00:43]} 24. Ke3 {[%clk 0:01:16]}  Rxg2 {[%clk 0:00:41]} 25. Rxb5 {[%clk 0:01:12]}  Rxh2 {[%clk 0:00:41]} 26. c3 {[%clk 0:01:10]}  h5 {[%clk 0:00:39]} 27. Bf8 {[%clk 0:01:05]}  g5 {[%clk 0:00:31]} 28. Be7 {[%clk 0:00:58]}  Rh3 {[%clk 0:00:18]} 29. Kf2 {[%clk 0:00:51]}  g4 {[%clk 0:00:16]} 30. Rf5 {[%clk 0:00:46]}  gxf3 {[%clk 0:00:10]} 31. Rxf3 {[%clk 0:00:46]}  Rh2+ {[%clk 0:00:11]} 32. Ke3 {[%clk 0:00:46]}  Rxb2 {[%clk 0:00:11]} 33. Rxf6 {[%clk 0:00:46]}  Rb1 {[%clk 0:00:06]} 34. Rh6 {[%clk 0:00:43]}  Re1+ {[%clk 0:00:06]} 35. Kd2 {[%clk 0:00:41]}  Rxe4 {[%clk 0:00:06]} 36. Bg5 {[%clk 0:00:40]}  Re5 {[%clk 0:00:06]} 37. Rxh5 {[%clk 0:00:39]}  Bf3 {[%clk 0:00:04]} 38. Rh8+ {[%clk 0:00:37]}  Kb7 {[%clk 0:00:05]} 39. Be3 {[%clk 0:00:36]}  Rd5+ {[%clk 0:00:04]} 40. Bd4 {[%clk 0:00:36]}  c5 {[%clk 0:00:03]} 41. Rf8 {[%clk 0:00:35]}  Bh1 {[%clk 0:00:02]} 42. Rf7+ {[%clk 0:00:34]}  Kc6 {[%clk 0:00:01]} 43. Rf6+ {[%clk 0:00:34]}  Kd7 {[%clk 0:00:01]} 44. Rf7+ {[%clk 0:00:34]}  Ke6 {[%clk 0:00:01]} 45. Rh7 {[%clk 0:00:34]} 1-0


[Site "https://www.chess.com"]

[Event "Titled Tuesday Blitz February 14 Early 2023"]
[White "Thomas, Anysia"]
[Black "Avazkhonov, Alikhon"]
[WhiteFideId "670472"]
[BlackFideId "14208504"]
[WhiteElo "2147"]
[BlackElo "1538"]
[Result "0-1"]
[Round "07"]
[TimeControl "180+2"]
[Date "2023.02.15"]
[WhiteClock "0:00:07"]
[BlackClock "0:00:44"]

1. d4 {[%clk 0:03:00]}  Nf6 {[%clk 0:02:56]} 2. c4 {[%clk 0:03:00]}  e6 {[%clk 0:02:57]} 3. Nf3 {[%clk 0:03:00]}  Bb4+ {[%clk 0:02:57]} 4. Nbd2 {[%clk 0:02:59]}  b6 {[%clk 0:02:55]} 5. g3 {[%clk 0:02:58]}  Bb7 {[%clk 0:02:55]} 6. Bg2 {[%clk 0:02:59]}  O-O {[%clk 0:02:54]} 7. O-O {[%clk 0:02:59]}  d6 {[%clk 0:02:54]} 8. Nb1 {[%clk 0:02:51]}  d5 {[%clk 0:02:49]} 9. Ne5 {[%clk 0:02:46]}  Nbd7 {[%clk 0:02:48]} 10. a3 {[%clk 0:02:41]}  Bd6 {[%clk 0:02:46]} 11. cxd5 {[%clk 0:02:40]}  exd5 {[%clk 0:02:46]} 12. Nc4 {[%clk 0:02:39]}  Be7 {[%clk 0:02:45]} 13. Nc3 {[%clk 0:02:39]}  c6 {[%clk 0:02:22]} 14. Ne3 {[%clk 0:02:31]}  Re8 {[%clk 0:02:22]} 15. Nf5 {[%clk 0:02:31]}  Bf8 {[%clk 0:02:23]} 16. Bf4 {[%clk 0:02:30]}  Ne4 {[%clk 0:01:53]} 17. Nxe4 {[%clk 0:02:11]}  dxe4 {[%clk 0:01:54]} 18. e3 {[%clk 0:01:31]}  Nf6 {[%clk 0:01:51]} 19. g4 {[%clk 0:01:10]}  c5 {[%clk 0:01:46]} 20. dxc5 {[%clk 0:01:04]}  Bxc5 {[%clk 0:01:46]} 21. Bd6 {[%clk 0:00:49]}  Ba6 {[%clk 0:01:41]} 22. Re1 {[%clk 0:00:38]}  Bd3 {[%clk 0:01:41]} 23. Bg3 {[%clk 0:00:22]}  g6 {[%clk 0:01:37]} 24. Nh6+ {[%clk 0:00:19]}  Kg7 {[%clk 0:01:38]} 25. g5 {[%clk 0:00:19]}  Nd5 {[%clk 0:01:31]} 26. b4 {[%clk 0:00:19]}  Bd6 {[%clk 0:01:23]} 27. h4 {[%clk 0:00:19]}  Bxg3 {[%clk 0:01:23]} 28. fxg3 {[%clk 0:00:19]}  f5 {[%clk 0:01:17]} 29. Rc1 {[%clk 0:00:17]}  Rc8 {[%clk 0:01:16]} 30. Qd2 {[%clk 0:00:14]}  Qd6 {[%clk 0:01:09]} 31. Qb2+ {[%clk 0:00:14]}  Nc3 {[%clk 0:00:47]} 32. Rxc3 {[%clk 0:00:13]}  Qe5 {[%clk 0:00:43]} 33. Rc7+ {[%clk 0:00:12]}  Rxc7 {[%clk 0:00:43]} 34. Qf2 {[%clk 0:00:10]}  Rc2 {[%clk 0:00:42]} 35. Qf4 {[%clk 0:00:08]}  Qxf4 {[%clk 0:00:42]} 36. gxf4 {[%clk 0:00:08]}  Rec8 {[%clk 0:00:42]} 37. Kh2 {[%clk 0:00:08]}  Rc1 {[%clk 0:00:42]} 38. Rxc1 {[%clk 0:00:07]}  Rxc1 {[%clk 0:00:43]} 39. h5 {[%clk 0:00:08]}  Ra1 {[%clk 0:00:43]} 40. hxg6 {[%clk 0:00:08]}  hxg6 {[%clk 0:00:44]} 41. Kg3 {[%clk 0:00:07]}  Rxa3 {[%clk 0:00:44]} 0-1


[Site "https://www.chess.com"]

[Event "Titled Tuesday Blitz February 14 Early 2023"]
[White "Martinez, Shawn"]
[Black "Broca Jimenez, Fernando"]
[WhiteFideId "2039770"]
[BlackFideId "5104742"]
[WhiteElo "1881"]
[BlackElo "2075"]
[Result "0-1"]
[Round "07"]
[TimeControl "180+2"]
[Date "2023.02.15"]
[WhiteClock "0:00:26"]
[BlackClock "0:00:10"]

1. e4 {[%clk 0:03:00]}  c5 {[%clk 0:02:55]} 2. Nc3 {[%clk 0:02:56]}  g6 {[%clk 0:02:54]} 3. Bc4 {[%clk 0:02:55]}  Bg7 {[%clk 0:02:54]} 4. Qf3 {[%clk 0:02:54]}  e6 {[%clk 0:02:53]} 5. Nb5 {[%clk 0:02:50]}  d6 {[%clk 0:02:45]} 6. Qg3 {[%clk 0:02:49]}  e5 {[%clk 0:02:39]} 7. Qb3 {[%clk 0:02:43]}  Nh6 {[%clk 0:02:33]} 8. Qd3 {[%clk 0:02:29]}  O-O {[%clk 0:02:11]} 9. a4 {[%clk 0:02:25]}  Nc6 {[%clk 0:01:38]} 10. Qxd6 {[%clk 0:02:15]}  Qxd6 {[%clk 0:01:20]} 11. Nxd6 {[%clk 0:02:12]}  Nd4 {[%clk 0:01:20]} 12. Kd1 {[%clk 0:02:08]}  Ng4 {[%clk 0:01:20]} 13. Nh3 {[%clk 0:02:07]}  Nf6 {[%clk 0:01:11]} 14. Nxc8 {[%clk 0:02:06]}  Raxc8 {[%clk 0:01:10]} 15. d3 {[%clk 0:02:06]}  a6 {[%clk 0:00:59]} 16. c3 {[%clk 0:02:03]}  Nc6 {[%clk 0:00:58]} 17. a5 {[%clk 0:02:02]}  Rfd8 {[%clk 0:00:55]} 18. Kc2 {[%clk 0:02:01]}  Ne8 {[%clk 0:00:54]} 19. g3 {[%clk 0:01:56]}  Nd6 {[%clk 0:00:54]} 20. Bd5 {[%clk 0:01:56]}  Ne7 {[%clk 0:00:53]} 21. Ba2 {[%clk 0:01:50]}  c4 {[%clk 0:00:51]} 22. Rd1 {[%clk 0:01:47]}  cxd3+ {[%clk 0:00:50]} 23. Rxd3 {[%clk 0:01:44]}  Nxe4 {[%clk 0:00:48]} 24. Rxd8+ {[%clk 0:01:43]}  Rxd8 {[%clk 0:00:49]} 25. f3 {[%clk 0:01:42]}  Nc5 {[%clk 0:00:40]} 26. Ng5 {[%clk 0:01:40]}  Nd5 {[%clk 0:00:34]} 27. b4 {[%clk 0:01:31]}  Ne6 {[%clk 0:00:23]} 28. Nxe6 {[%clk 0:01:24]}  fxe6 {[%clk 0:00:24]} 29. Kb3 {[%clk 0:01:20]}  e4 {[%clk 0:00:18]} 30. fxe4 {[%clk 0:01:13]}  Nxc3 {[%clk 0:00:19]} 31. Bg5 {[%clk 0:01:09]}  Rd3 {[%clk 0:00:14]} 32. Kc4 {[%clk 0:01:08]}  Rf3 {[%clk 0:00:13]} 33. Bb3 {[%clk 0:00:47]}  Nxe4 {[%clk 0:00:13]} 34. Be7 {[%clk 0:00:47]}  Bxa1 {[%clk 0:00:11]} 35. Bd1 {[%clk 0:00:39]}  Rf2 {[%clk 0:00:10]} 36. Kd3 {[%clk 0:00:35]}  Rd2+ {[%clk 0:00:07]} 37. Kxe4 {[%clk 0:00:31]}  Rxd1 {[%clk 0:00:08]} 38. Bc5 {[%clk 0:00:29]}  Kf7 {[%clk 0:00:09]} 39. h4 {[%clk 0:00:29]}  e5 {[%clk 0:00:09]} 40. g4 {[%clk 0:00:28]}  Ke6 {[%clk 0:00:09]} 41. h5 {[%clk 0:00:28]}  Bd4 {[%clk 0:00:09]} 42. hxg6 {[%clk 0:00:28]}  hxg6 {[%clk 0:00:10]} 43. Bf8 {[%clk 0:00:27]}  Rb1 {[%clk 0:00:09]} 44. g5 {[%clk 0:00:26]}  Bc3 {[%clk 0:00:10]} 0-1


[Site "https://www.chess.com"]

[Event "Titled Tuesday Blitz February 14 Early 2023"]
[White "Makhmudov, Shukhrat"]
[Black "Vargas, Mauricio"]
[WhiteFideId "14200775"]
[BlackFideId "4404572"]
[WhiteElo "2115"]
[BlackElo "2035"]
[Result "1-0"]
[Round "07"]
[TimeControl "180+2"]
[Date "2023.02.15"]
[WhiteClock "0:02:30"]
[BlackClock "0:00:03"]

1. e4 {[%clk 0:03:00]}  d5 {[%clk 0:00:27]} 2. exd5 {[%clk 0:02:59]}  Qxd5 {[%clk 0:00:28]} 3. Nc3 {[%clk 0:02:59]}  Qa5 {[%clk 0:00:29]} 4. b4 {[%clk 0:02:58]}  c6 {[%clk 0:00:29]} 5. Rb1 {[%clk 0:02:59]}  Qc7 {[%clk 0:00:23]} 6. b5 {[%clk 0:02:57]}  Nf6 {[%clk 0:00:21]} 7. bxc6 {[%clk 0:02:51]}  Nxc6 {[%clk 0:00:21]} 8. Nb5 {[%clk 0:02:51]}  Qe5+ {[%clk 0:00:20]} 9. Be2 {[%clk 0:02:50]}  a6 {[%clk 0:00:13]} 10. Nf3 {[%clk 0:02:47]}  Qb8 {[%clk 0:00:11]} 11. Nbd4 {[%clk 0:02:44]}  e5 {[%clk 0:00:10]} 12. Nxc6 {[%clk 0:02:44]}  Qd6 {[%clk 0:00:07]} 13. Ncxe5 {[%clk 0:02:43]}  Bf5 {[%clk 0:00:04]} 14. Rxb7 {[%clk 0:02:39]}  Rc8 {[%clk 0:00:03]} 15. c3 {[%clk 0:02:30]} 1-0


[Site "https://www.chess.com"]

[Event "Titled Tuesday Blitz February 14 Early 2023"]
[White "Ciuffoletti, Paolo"]
[Black "Yonal, Timur"]
[WhiteFideId "807630"]
[BlackFideId "44115725"]
[WhiteElo "2106"]
[BlackElo "2039"]
[Result "1-0"]
[Round "07"]
[TimeControl "180+2"]
[Date "2023.02.15"]
[WhiteClock "0:01:01"]
[BlackClock "0:02:23"]

1. e4 {[%clk 0:03:00]}  c5 {[%clk 0:02:59]} 2. d4 {[%clk 0:03:00]}  cxd4 {[%clk 0:02:58]} 3. c3 {[%clk 0:03:00]}  dxc3 {[%clk 0:02:58]} 4. Nxc3 {[%clk 0:03:01]}  e6 {[%clk 0:02:59]} 5. Nf3 {[%clk 0:03:01]}  a6 {[%clk 0:02:59]} 6. Bc4 {[%clk 0:03:01]}  Qc7 {[%clk 0:03:00]} 7. Qe2 {[%clk 0:02:59]}  Ne7 {[%clk 0:03:00]} 8. O-O {[%clk 0:02:56]}  Ng6 {[%clk 0:03:01]} 9. Bb3 {[%clk 0:02:35]}  Be7 {[%clk 0:03:00]} 10. Be3 {[%clk 0:02:33]}  O-O {[%clk 0:02:59]} 11. Rac1 {[%clk 0:02:33]}  Nc6 {[%clk 0:03:00]} 12. Nd4 {[%clk 0:02:26]}  Bf6 {[%clk 0:02:56]} 13. Qd2 {[%clk 0:02:09]}  b5 {[%clk 0:02:46]} 14. Nd5 {[%clk 0:01:58]}  exd5 {[%clk 0:02:45]} 15. exd5 {[%clk 0:01:57]}  Bb7 {[%clk 0:02:45]} 16. Nf5 {[%clk 0:01:25]}  Qe5 {[%clk 0:02:41]} 17. dxc6 {[%clk 0:01:23]}  Bxc6 {[%clk 0:02:35]} 18. Rc5 {[%clk 0:01:18]}  Qe4 {[%clk 0:02:32]} 19. f3 {[%clk 0:01:16]}  Qe8 {[%clk 0:02:28]} 20. Bd4 {[%clk 0:01:04]}  Bxd4+ {[%clk 0:02:26]} 21. Qxd4 {[%clk 0:01:03]}  Qe2 {[%clk 0:02:23]} 22. Qxg7# {[%clk 0:01:01]} 1-0


[Site "https://www.chess.com"]

[Event "Titled Tuesday Blitz February 14 Early 2023"]
[White "Burdalev, Kirill"]
[Black "Ghosh, Chanchal Kumer"]
[WhiteFideId "14121913"]
[BlackFideId "10201858"]
[WhiteElo "2368"]
[BlackElo "2020"]
[Result "0-1"]
[Round "07"]
[TimeControl "180+2"]
[Date "2023.02.15"]
[WhiteClock "0:00:01"]
[BlackClock "0:00:03"]

1. d4 {[%clk 0:03:00]}  d5 {[%clk 0:02:59]} 2. c4 {[%clk 0:02:57]}  e6 {[%clk 0:02:58]} 3. g3 {[%clk 0:02:56]}  Nf6 {[%clk 0:02:59]} 4. Bg2 {[%clk 0:02:53]}  b6 {[%clk 0:02:59]} 5. cxd5 {[%clk 0:02:50]}  exd5 {[%clk 0:02:58]} 6. Nf3 {[%clk 0:02:47]}  Bb7 {[%clk 0:02:57]} 7. Nc3 {[%clk 0:02:45]}  h6 {[%clk 0:02:56]} 8. O-O {[%clk 0:02:42]}  Nbd7 {[%clk 0:02:54]} 9. Ne5 {[%clk 0:02:40]}  Bd6 {[%clk 0:02:52]} 10. Bf4 {[%clk 0:02:26]}  O-O {[%clk 0:02:49]} 11. Qa4 {[%clk 0:02:22]}  a6 {[%clk 0:02:37]} 12. Nxd7 {[%clk 0:02:11]}  Nxd7 {[%clk 0:02:04]} 13. Bxd6 {[%clk 0:02:00]}  cxd6 {[%clk 0:02:03]} 14. Nxd5 {[%clk 0:02:00]}  b5 {[%clk 0:01:54]} 15. Qb3 {[%clk 0:01:54]}  Nb6 {[%clk 0:01:43]} 16. Nxb6 {[%clk 0:01:44]}  Qxb6 {[%clk 0:01:42]} 17. Bxb7 {[%clk 0:01:44]}  Qxb7 {[%clk 0:01:43]} 18. Rac1 {[%clk 0:01:43]}  Rfe8 {[%clk 0:01:41]} 19. e3 {[%clk 0:01:41]}  h5 {[%clk 0:01:37]} 20. h4 {[%clk 0:01:39]}  g5 {[%clk 0:01:33]} 21. hxg5 {[%clk 0:01:36]}  Qf3 {[%clk 0:00:35]} 22. g6 {[%clk 0:01:28]}  Re7 {[%clk 0:00:17]} 23. gxf7+ {[%clk 0:01:15]}  Rxf7 {[%clk 0:00:16]} 24. Rc7 {[%clk 0:01:13]}  Rf8 {[%clk 0:00:17]} 25. Qe6 {[%clk 0:01:02]}  Kg7 {[%clk 0:00:09]} 26. Rxf7+ {[%clk 0:00:57]}  Rxf7 {[%clk 0:00:10]} 27. Qxd6 {[%clk 0:00:53]}  h4 {[%clk 0:00:09]} 28. Qe5+ {[%clk 0:00:37]}  Kh7 {[%clk 0:00:09]} 29. Kh2 {[%clk 0:00:03]}  Rf5 {[%clk 0:00:02]} 30. Qc7+ {[%clk 0:00:01]}  Kg6 {[%clk 0:00:03]} 0-1


[Site "https://www.chess.com"]

[Event "Titled Tuesday Blitz February 14 Early 2023"]
[White "Livaic, Leon"]
[Black "Nihal Sarin"]
[WhiteFideId "14531534"]
[BlackFideId "25092340"]
[WhiteElo "2579"]
[BlackElo "2673"]
[Result "0-1"]
[Round "08"]
[TimeControl "180+2"]
[Date "2023.02.14"]
[WhiteClock "0:00:31"]
[BlackClock "0:00:52"]

1. e4 {[%clk 0:02:59]}  c5 {[%clk 0:02:57]} 2. Nf3 {[%clk 0:02:59]}  Nc6 {[%clk 0:02:56]} 3. Bc4 {[%clk 0:02:58]}  e6 {[%clk 0:02:53]} 4. O-O {[%clk 0:02:58]}  Nf6 {[%clk 0:02:49]} 5. Re1 {[%clk 0:02:58]}  d6 {[%clk 0:02:43]} 6. c3 {[%clk 0:02:56]}  Be7 {[%clk 0:02:40]} 7. Bf1 {[%clk 0:02:49]}  e5 {[%clk 0:02:33]} 8. h3 {[%clk 0:02:39]}  g5 {[%clk 0:02:32]} 9. d4 {[%clk 0:02:27]}  cxd4 {[%clk 0:02:28]} 10. Bxg5 {[%clk 0:02:15]}  Rg8 {[%clk 0:02:28]} 11. Kh1 {[%clk 0:02:15]}  Nxe4 {[%clk 0:01:24]} 12. Bxe7 {[%clk 0:02:14]}  Nxf2+ {[%clk 0:01:24]} 13. Kg1 {[%clk 0:02:04]}  Nxh3+ {[%clk 0:01:24]} 14. Kh2 {[%clk 0:01:59]}  Qxe7 {[%clk 0:01:25]} 15. gxh3 {[%clk 0:01:59]}  Qf6 {[%clk 0:01:20]} 16. cxd4 {[%clk 0:01:20]}  Qf4+ {[%clk 0:01:18]} 17. Kh1 {[%clk 0:01:21]}  Rg3 {[%clk 0:01:19]} 18. Nh2 {[%clk 0:00:31]}  Qf2 {[%clk 0:00:52]} 0-1


[Site "https://www.chess.com"]

[Event "Titled Tuesday Blitz February 14 Early 2023"]
[White "Indjic, Aleksandar"]
[Black "Bok, Benjamin"]
[WhiteFideId "911925"]
[BlackFideId "1017063"]
[WhiteElo "2618"]
[BlackElo "2607"]
[Result "1-0"]
[Round "08"]
[TimeControl "180+2"]
[Date "2023.02.14"]
[WhiteClock "0:01:01"]
[BlackClock "0:00:03"]

1. d4 {[%clk 0:03:00]}  Nf6 {[%clk 0:03:00]} 2. c4 {[%clk 0:03:00]}  e6 {[%clk 0:03:00]} 3. Nc3 {[%clk 0:02:59]}  Bb4 {[%clk 0:03:00]} 4. Qc2 {[%clk 0:03:00]}  d5 {[%clk 0:03:00]} 5. a3 {[%clk 0:02:55]}  Bxc3+ {[%clk 0:03:00]} 6. Qxc3 {[%clk 0:02:56]}  O-O {[%clk 0:03:00]} 7. Nf3 {[%clk 0:02:55]}  b6 {[%clk 0:03:00]} 8. Bg5 {[%clk 0:02:53]}  dxc4 {[%clk 0:03:00]} 9. Qxc4 {[%clk 0:02:53]}  Ba6 {[%clk 0:03:00]} 10. Qc1 {[%clk 0:02:50]}  Nbd7 {[%clk 0:02:49]} 11. Ne5 {[%clk 0:02:35]}  c5 {[%clk 0:02:35]} 12. Nxd7 {[%clk 0:02:32]}  Qxd7 {[%clk 0:02:36]} 13. dxc5 {[%clk 0:02:32]}  Rac8 {[%clk 0:02:29]} 14. Qd2 {[%clk 0:02:30]}  Rxc5 {[%clk 0:02:19]} 15. Qxd7 {[%clk 0:02:22]}  Nxd7 {[%clk 0:02:20]} 16. Be7 {[%clk 0:02:21]}  Rc2 {[%clk 0:02:19]} 17. Bxf8 {[%clk 0:02:20]}  Kxf8 {[%clk 0:02:20]} 18. Rb1 {[%clk 0:02:14]}  Bc4 {[%clk 0:02:01]} 19. e3 {[%clk 0:01:42]}  Ne5 {[%clk 0:00:29]} 20. Bxc4 {[%clk 0:01:26]}  Nxc4 {[%clk 0:00:29]} 21. O-O {[%clk 0:01:23]}  Nxb2 {[%clk 0:00:29]} 22. Rfc1 {[%clk 0:01:21]}  Rd2 {[%clk 0:00:27]} 23. Rc8+ {[%clk 0:01:15]}  Ke7 {[%clk 0:00:27]} 24. Rc7+ {[%clk 0:01:15]}  Kf6 {[%clk 0:00:27]} 25. Rxa7 {[%clk 0:01:15]}  Kg6 {[%clk 0:00:18]} 26. h3 {[%clk 0:01:15]}  Nc4 {[%clk 0:00:13]} 27. Rc1 {[%clk 0:01:12]}  Ne5 {[%clk 0:00:09]} 28. f4 {[%clk 0:01:06]}  Nd3 {[%clk 0:00:04]} 29. Rd7 {[%clk 0:01:05]}  Nxc1 {[%clk 0:00:01]} 30. Rxd2 {[%clk 0:01:02]}  Nb3 {[%clk 0:00:02]} 31. Rb2 {[%clk 0:01:02]}  Na5 {[%clk 0:00:02]} 32. Rxb6 {[%clk 0:01:01]}  Nc4 {[%clk 0:00:03]} 33. Rb3 {[%clk 0:01:01]} 1-0


[Site "https://www.chess.com"]